Cogmind - Beta 16 @@@ ROGUE MODE // 2025.12.25 @ 22:24:20 Player: JuustuToug Result: Destroyed by Enhanced Grunt with Neutron Cannon Performance ------------- Evolutions (4) 2000 Regions Visited (10) 2000 Robots Destroyed (41) 205 Value Destroyed (1111) 1111 Prototype IDs (240) 4800 Alien Tech Used (0) 0 Bonus (4400) 4400 TOTAL SCORE: 14516 Bonus ------- Follower Combat Kills 408 Registered with UFD 300 Met Optimus in HQ 500 Met Data Miner 300 Used Data Conduit 3000 Friendly Fire -108 Cogmind --------- Core Integrity 0/850 Matter 300/300 Energy 100/100 System Corruption 35% Temperature Cool (0) Movement Core (100) Ox1 Location -6/Data Miner Parts ------- > --- POWER (2) -------- (None) > --- PROPULSION (5) --- (None) > --- UTILITY (6) ------ Advanced Signal Interpreter 0b10 Decoder Chip [Generic] Improved Melee Analysis Suite Advanced Melee Analysis Suite > --- WEAPON (2) ------- Companion Sword (fused) > --- INVENTORY (5) ---- Light Angular Momentum Engine Neutrino Core Experimental Terrain Scanner Peak State ------------ > --- POWER ------------ Improved Deuterium Engine Light Angular Momentum Engine > --- PROPULSION ------- Carbon-fiber Leg Carbon-fiber Leg Carbon-fiber Leg Improved Carbon-fiber Leg Flexi-carbon Leg > --- UTILITY ---------- Medium Storage Unit Improved Sensor Array Advanced Signal Interpreter Advanced Melee Analysis Suite Advanced Melee Analysis Suite Improved Force Booster > --- WEAPON ----------- Companion Sword > --- INVENTORY -------- Light Ion Engine Advanced Heat Sink Deep Structural Scanner Improved Sensor Array Experimental Terrain Scanner Improved Melee Analysis Suite Microactuators Advanced Force Field Remote Datajack CPS Tube [Rating: 63] Favorites ----------- Power Light Ion Engine Engine Light Ion Engine Power Core Light Fission Core Propulsion Light Treads Treads Light Treads Leg Carbon-fiber Leg Hover Unit Gravmag Array Utility Seismic Detector Device Seismic Detector Storage Large Storage Unit Processor Advanced Melee Analysis Suite Protection Gun Armor Weapon Medium Laser Energy Gun Medium Laser Energy Cannon Heavy Particle Cannon Ballistic Gun Gauss Rifle Ballistic Cannon Battle Cannon Launcher Subdweller Shrapnel Launcher Slashing Weapon Companion Sword Build | -11 -10 -10 -8 -8 -6 -6 -6 -6 -6 -6 ------- Run | Yrd Mat Sub Rec Scr Fac Was Fac Low Low Dat Slots Evolved 8 | . . . . . 8 . . . . . Power 1 | . . . . . 1 . . . . . Propulsion 3 | . . . . . 3 . . . . . Utility 4 | . . . . . 4 . . . . . Weapon . | . . . . . . . . . . . Parts Attached 63 | 7 1 14 . 8 5 1 17 3 6 1 Power 11 | 1 . 2 . 2 . . 4 1 1 . Engine 8 | 1 . 2 . . . . 4 1 . . Core 3 | . . . . 2 . . . . 1 . Reactor . | . . . . . . . . . . . Propulsion 15 | 2 . 3 . . 1 . 7 1 1 . Treads 6 | 2 . 3 . . 1 . . . . . Leg 7 | . . . . . . . 5 1 1 . Wheel . | . . . . . . . . . . . Hover 2 | . . . . . . . 2 . . . Flight . | . . . . . . . . . . . Utility 22 | 2 1 1 . 1 4 1 6 1 4 1 Device 9 | 1 . 1 . . 1 1 2 1 2 . Storage 4 | 1 1 . . 1 . . 1 . . . Processor 7 | . . . . . 2 . 3 . 2 . Hackware . | . . . . . . . . . . . Protection 2 | . . . . . 1 . . . . 1 Artifact . | . . . . . . . . . . . Weapon 15 | 2 . 8 . 5 . . . . . . Energy Gun 6 | 2 . 4 . . . . . . . . Energy Cannon 2 | . . . . 2 . . . . . . Ballistic Gun 2 | . . . . 2 . . . . . . Ballistic Cannon 2 | . . 2 . . . . . . . . Launcher 2 | . . 2 . . . . . . . . Special Weapon . | . . . . . . . . . . . Impact Weapon . | . . . . . . . . . . . Slashing Weapon 1 | . . . . 1 . . . . . . Piercing Weapon . | . . . . . . . . . . . Special Melee Weapon . | . . . . . . . . . . . Unidentified Prototypes 3 | . . 1 . 1 . . . . 1 . Corrupted Parts 3 | . . . . . . 1 . . 2 . System Corruption 22 | . . . . . . 7 . . 15 . Parts Lost 14 | . . 1 . . . . . 8 1 4 Power 2 | . . 1 . . . . . . . 1 Propulsion 6 | . . . . . . . . 5 . 1 Utility 6 | . . . . . . . . 3 1 2 Weapon . | . . . . . . . . . . . Highest Loss Streak 4 | . . 1 . . . . . 3 1 4 To Critical Strikes . | . . . . . . . . . . . Average Backups 10 | 1 4 13 14 11 6 5 5 9 2 3 Power 1 | . 1 2 2 1 1 . . 1 1 2 Propulsion . | . . 1 2 . . . . . . . Utility 4 | . 1 4 5 4 3 3 4 6 1 1 Weapon 3 | . 1 4 5 4 1 1 . . . . Tool/Special . | . . . . . . . . . . . Unused Backups 31 | . . 7 . 12 . 5 1 4 . 2 Power 6 | . . 1 . 3 . 1 . . . 1 Propulsion 3 | . . 1 . 2 . . . . . . Utility 12 | . . 2 . 3 . 3 1 2 . 1 Weapon 8 | . . 3 . 4 . 1 . . . . Tool/Special 2 | . . . . . . . . 2 . . Average Slot Usage (%) 90 | . 100 99 100 92 55 46 74 83 40 51 Engine 9 | . 14 13 14 6 . . 4 12 . . Core 1 | . . . . 7 5 1 . . 1 5 Treads 22 | . 28 28 28 26 11 19 7 . . . Leg 2 | . . . . . . . 13 27 1 5 Device 13 | . 14 14 14 14 10 7 17 9 4 5 Storage 11 | . 14 14 14 13 5 1 2 5 . . Processor 4 | . . . . . 8 12 19 20 25 26 Energy Gun 10 | . 28 18 14 1 . . . . . . Energy Cannon 1 | . . . . 8 . . . . . . Ballistic Gun 1 | . . . . 7 . . . . . . Ballistic Cannon 5 | . . 9 14 4 . . . . . . Slashing Weapon 1 | . . . . 1 5 1 5 5 5 6 Peak Build Rating 63 | 7 7 15 13 22 42 42 63 63 45 45 Average Rating 19 | 5 7 11 13 15 34 20 51 56 34 42 On Entrance 22 | . 7 7 13 13 18 42 25 63 17 45 Avg Prop Armor Cover (%) 28 | . . . . . . 42 23 . . . Naked Turns . | . . . . . . . . . . . Heaviest Build 42 | 15 30 36 31 38 35 9 42 42 12 13 Greatest Support 83 | 40 40 40 40 40 70 3 83 83 20 20 Greatest Overweight (x) 4 | . . . . . . 2 . . 1 4 Average Overweight (x) . | . . . . . . . . . . . Largest Inventory Capacity 15 | 8 15 15 15 15 15 15 10 10 5 5 Average Capacity 13 | 6 14 15 15 14 15 5 6 9 5 5 Most Carried 15 | 2 6 15 14 15 10 9 10 10 5 3 Average Carried 10 | 1 4 13 14 11 7 5 5 9 2 3 Final Capacity 15 | 8 15 15 15 15 15 5 10 5 5 5 Final Carried 14 | 2 6 14 14 10 9 5 10 5 3 3 Class Distribution -------------------- 89% | Mutant 10% | Scavenger-Mutant Dominant Class ---------------- Mutant | -10/Materials Mutant | -10/Subcaves Mutant | -8/Recycling Mutant | -8/Scraptown Mutant | -6/Factory Mutant | -6/Waste Mutant | -6/Factory Scavenger-Mutant | -6/Lower Caves Mutant | -6/Lower Caves Mutant | -6/Data Miner Resources | -11 -10 -10 -8 -8 -6 -6 -6 -6 -6 -6 ----------- Run | Yrd Mat Sub Rec Scr Fac Was Fac Low Low Dat Matter Collected 1538 | 264 16 383 . 282 28 . 402 31 132 . Remotely . | . . . . . . . . . . . Salvage Created 1417 | 57 125 359 . . . . 530 283 63 . Parts 81 | 5 15 21 . . . . 30 9 1 . Haulers Intercepted . | . . . . . . . . . . . Recyclers Shooed . | . . . . . . . . . . . Parts Field Recycled . | . . . . . . . . . . . Retrieved Matter . | . . . . . . . . . . . Parts Self-Destructed 17 | . . 9 . . . . . 5 3 . Prevented 6 | . . . . . . . . 1 5 . Parts Restored . | . . . . . . . . . . . Kills | -11 -10 -10 -8 -8 -6 -6 -6 -6 -6 -6 ------- Run | Yrd Mat Sub Rec Scr Fac Was Fac Low Low Dat Combat Hostiles Destroyed 27 | . 6 9 . . . . 4 7 1 . Melee 11 | . . . . . . . 4 6 1 . Guns 13 | . 6 7 . . . . . . . . AOE 3 | . . 2 . . . . . 1 . . Classes Destroyed 13 | 1 2 4 . . . . 5 . 1 . Worker 3 | . . . . . . . 3 . . . Builder 1 | . . . . . . . 1 . . . Tunneler 4 | 3 . . . . . . 1 . . . Recycler 1 | . . . . . . . 1 . . . Turret 2 | . . 2 . . . . . . . . Watcher 3 | . 2 . . . . . 1 . . . Swarmer 11 | . 6 1 . . . . . 4 . . Grunt 6 | . . 3 . . . . 2 1 . . Duelist 1 | . . . . . . . 1 . . . Sentry 2 | . . 1 . . . . . 1 . . Hunter 1 | . . . . . . . . . 1 . Programmer 2 | . . . . . . . 1 1 . . Subdweller 4 | . . 4 . . . . . . . . Best Kill Streak 4 | 2 3 3 . . . . 4 3 1 . Combat Bots Only 3 | . 3 2 . . . . 2 3 1 . Max Kills in Single Turn 1 | 1 1 1 . . . . 1 1 1 . Gunslinging . | . . . . . . . . . . . Exploded 1 | . . 1 . . . . . 1 . . Melee 1 | . . . . . . . 1 1 1 . Uniques/NPCs Destroyed . | . . . . . . . . . . . Combat | -11 -10 -10 -8 -8 -6 -6 -6 -6 -6 -6 -------- Run | Yrd Mat Sub Rec Scr Fac Was Fac Low Low Dat Hostile Shots Fired 270 | . 26 74 . . 1 . 21 101 24 23 Missed 98 | . 7 31 . . 1 . 3 40 9 7 Hits 172 | . 19 43 . . . . 18 61 15 16 Melee 4 | . . . . . . . 2 . 2 . Projectile 168 | . 19 43 . . . . 16 61 13 16 AOE 1 | . . 1 . . . . . . . . Critical Strikes 4 | . . . . . . . 1 3 . . Part Disruptions 1 | . . . . . . . . . . 1 Damage Taken 3620 | . 179 990 . . . . 362 1033 270 786 Core 1095 | . 8 233 . . . . 80 239 197 338 Absorbed by Shields . | . . . . . . . . . . . Core Remaining (%) 51 | 100 . . . 3 . . . . . . Volleys Fired 110 | 6 17 87 . . . . . . . . Largest 2 | 2 2 2 . . . . . . . . Hottest 110 | 100 100 110 . . . . . . . . Shots Fired 166 | 12 34 120 . . . . . . . . Gun 146 | 12 34 100 . . . . . . . . Cannon 15 | . . 15 . . . . . . . . Launcher 5 | . . 5 . . . . . . . . Special . | . . . . . . . . . . . Kinetic 18 | . . 18 . . . . . . . . Thermal 146 | 12 34 100 . . . . . . . . Explosive 2 | . . 2 . . . . . . . . Electromagnetic . | . . . . . . . . . . . Robot Hit Streak 13 | 2 8 13 . . . . . . . . Robot Miss Streak 4 | 2 3 4 . . . . . . . . Penetration Max . | . . . . . . . . . . . Secondary Targets 1 | . . 1 . . . . . . . . Max Gunslinging Chain 1 | . . 1 . . . . . . . . Shots Hit Robots 120 | 6 17 50 . . . . 21 16 3 7 Core Hits 51 | 3 9 22 . . . . 9 5 1 2 Critical Kills . | . . . . . . . . . . . Critical Parts Destroyed . | . . . . . . . . . . . Critical Strikes 8 | 1 1 6 . . . . . . . . Burn 8 | 1 1 6 . . . . . . . . Melee Attacks 59 | . . . . . 2 . 24 22 4 7 Impact . | . . . . . . . . . . . Slashing 59 | . . . . . 2 . 24 22 4 7 Piercing . | . . . . . . . . . . . Sneak Attacks 7 | . . . . . . . 6 . . 1 Combat Hostiles . | . . . . . . . . . . . Follow-up Attacks 1 | . . . . . . . . 1 . . Damage Inflicted 3962 | 76 222 1168 . . . . 1287 737 131 341 Guns 922 | 76 212 634 . . . . . . . . Cannons . | . . . . . . . . . . . Explosions 534 | . . 534 . . . . . . . . Melee 2496 | . . . . . . . 1287 737 131 341 Ramming 10 | . 10 . . . . . . . . . Kinetic 332 | . . 332 . . . . . . . . Thermal 922 | 76 212 634 . . . . . . . . Explosive 202 | . . 202 . . . . . . . . Electromagnetic . | . . . . . . . . . . . Impact . | . . . . . . . . . . . Slashing 2496 | . . . . . . . 1287 737 131 341 Piercing . | . . . . . . . . . . . Highest Corruption 35 | . . . . . . 16 18 19 35 35 Average Corruption 19 | . . . . . . 9 16 18 22 35 Corruption Purged . | . . . . . . . . . . . Corruption Blocked . | . . . . . . . . . . . Effects 74 | . . . . . . 1 24 21 21 7 Message Errors 12 | . . . . . . . 2 4 4 2 Matter Fused 19 | . . . . . . 1 7 5 6 . Heat Flow Errors 10 | . . . . . . . 4 1 4 1 Energy Discharges 8 | . . . . . . . 5 . 2 1 Parts Rejected 3 | . . . . . . . 1 2 . . Parts Fused 2 | . . . . . . . 1 . 1 . Data Loss (minor) 12 | . . . . . . . 4 4 3 1 Data Loss (major) 2 | . . . . . . . . 2 . . Alerts 3 | . . . . . . . . 1 1 1 Misdirections 3 | . . . . . . . . 2 . 1 Overload Shots . | . . . . . . . . . . . Overflow Damage 497 | . . 24 . . . . 402 64 7 . Projectiles . | . . . . . . . . . . . Explosions 24 | . . 24 . . . . . . . . Melee 473 | . . . . . . . 402 64 7 . Knockbacks . | . . . . . . . . . . . Impact . | . . . . . . . . . . . Kinetic . | . . . . . . . . . . . Secondary . | . . . . . . . . . . . Self-Inflicted Damage 46 | . . 46 . . . . . . . . Shots 1 | . . 1 . . . . . . . . Rammed 1 | . 1 . . . . . . . . . Targets Rammed 1 | . 1 . . . . . . . . . Kicked . | . . . . . . . . . . . Crushed . | . . . . . . . . . . . Highest Temperature 252 | 78 139 15 . . . . 177 184 252 98 Average Temperature 52 | 33 45 5 . . . . 76 88 111 56 Received Heat Transfer 552 | . 12 252 . . . . 90 198 . . Siege Activations . | . . . . . . . . . . . Martial Activations . | . . . . . . . . . . . Shielding Activations . | . . . . . . . . . . . Robots Disrupted . | . . . . . . . . . . . Combat Hostiles . | . . . . . . . . . . . Robots Corrupted . | . . . . . . . . . . . Combat Hostiles . | . . . . . . . . . . . Parts Fried 1 | . . . . . . . . . 1 . Impact Corruptions . | . . . . . . . . . . . Robots Melted . | . . . . . . . . . . . Combat Hostiles . | . . . . . . . . . . . Parts Melted 5 | 4 1 . . . . . . . . . Heat Transferred 3122 | 296 703 2123 . . . . . . . . Parts Sabotaged . | . . . . . . . . . . . Parts Stolen 1 | . . . . . . . . . 1 . Parts Stripped . | . . . . . . . . . . . Power Chain Reactions . | . . . . . . . . . . . Alert | -11 -10 -10 -8 -8 -6 -6 -6 -6 -6 -6 ------- Run | Yrd Mat Sub Rec Scr Fac Was Fac Low Low Dat Maximum Alert Level . | . . . . . . . . . . . Low Security (%) 100 | 100 100 . 100 . 100 100 100 . . . Level 1 . | . . . . . . . . . . . Level 2 . | . . . . . . . . . . . Level 3 . | . . . . . . . . . . . Level 4 . | . . . . . . . . . . . Level 5 . | . . . . . . . . . . . High Security . | . . . . . . . . . . . Max Security . | . . . . . . . . . . . Peak Influence 82 | 5 70 . 82 . 77 . 70 . . . Initial 62 | . . . 62 . . . . . . . Average 15 | 1 9 . 65 . 13 . 19 . . . Influence Increases 1309 | 15 196 220 30 . 84 . 153 400 211 . Destroy 0b10 Robot/C 700 | . 120 180 . . 60 . 80 140 120 . Destroy 0b10 Robot/NC 60 | 15 10 . . . . . 35 . . . Destroy Leader 116 | . 24 10 . . 10 . 22 20 30 . Allied During Kill 83 | . . 15 . . 7 . . . 61 . Successful Hack 30 | . 25 . . . 5 . . . . . Select Force Hacks 30 | . . . 30 . . . . . . . Disable Machine 15 | . . . . . . . 15 . . . Destroy Structure 5 | . 2 . . . 2 . 1 . . . Lose Combat Pursuer 270 | . 15 15 . . . . . 240 . . Influence Decreases 1309 | 15 134 152 108 52 84 . 106 274 250 134 Entered New Map 337 | . . 30 68 52 . . . 19 34 134 Time Decay 850 | 15 134 122 40 . 47 . 106 180 206 . Lost Part 85 | . . . . . . . . 75 10 . Lost Ally 37 | . . . . . 37 . . . . . Squads Dispatched 2 | . 1 . . . . . 1 . . . Investigation 1 | . 1 . . . . . . . . . Extermination 1 | . . . . . . . 1 . . . Reinforcement . | . . . . . . . . . . . Assault . | . . . . . . . . . . . Garrison . | . . . . . . . . . . . Intercept . | . . . . . . . . . . . Searches Triggered . | . . . . . . . . . . . Construction Impeded . | . . . . . . . . . . . Haulers Reinforced . | . . . . . . . . . . . Active Scanning Responses . | . . . . . . . . . . . Cargo Convoy Interrupts . | . . . . . . . . . . . Stealth | -11 -10 -10 -8 -8 -6 -6 -6 -6 -6 -6 --------- Run | Yrd Mat Sub Rec Scr Fac Was Fac Low Low Dat Distress Signals . | . . . . . . . . . . . Communications Jammed . | . . . . . . . . . . . Distress Signals . | . . . . . . . . . . . Times Spotted 86 | . 13 23 . . 3 6 8 22 7 4 Peak Tracking Total 10 | . 3 4 . . 3 6 4 10 3 3 Tactical Retreats 9 | . 1 1 . . . . . 7 . . Traps | -11 -10 -10 -8 -8 -6 -6 -6 -6 -6 -6 ------- Run | Yrd Mat Sub Rec Scr Fac Was Fac Low Low Dat Traps Triggered 4 | . 1 2 . . 1 . . . . . Indirectly . | . . . . . . . . . . . Trap Hack Attempts . | . . . . . . . . . . . Triggered . | . . . . . . . . . . . Disarmed . | . . . . . . . . . . . Reprogrammed . | . . . . . . . . . . . Reused . | . . . . . . . . . . . Traps Extracted . | . . . . . . . . . . . Installed . | . . . . . . . . . . . Triggered . | . . . . . . . . . . . Machines | -11 -10 -10 -8 -8 -6 -6 -6 -6 -6 -6 ---------- Run | Yrd Mat Sub Rec Scr Fac Was Fac Low Low Dat Machines Disabled 6 | . . 5 . . . . 1 . . . Max in Single Turn 2 | . . 2 . . . . 1 . . . Machines Repaired . | . . . . . . . . . . . Machines Dismantled . | . . . . . . . . . . . Machines Sabotaged . | . . . . . . . . . . . Overloaded Fab Kills . | . . . . . . . . . . . Hacking | -11 -10 -10 -8 -8 -6 -6 -6 -6 -6 -6 --------- Run | Yrd Mat Sub Rec Scr Fac Was Fac Low Low Dat Machines Accessed 28 | . 5 2 1 9 2 . 4 . 1 4 Terminals 6 | . 5 . . . . . 1 . . . Fabricators 1 | . . . . . 1 . . . . . Repair Stations 1 | . . . . . . . 1 . . . Recycling Units 2 | . . . 1 . 1 . . . . . Scanalyzers 2 | . . . . . . . 2 . . . Garrison Access . | . . . . . . . . . . . Total Hacks 101 | . 13 5 1 46 3 . 6 . 1 26 Successful 94 | . 9 5 1 46 3 . 3 . 1 26 Failed 7 | . 4 . . . . . 3 . . . Catastrophic 1 | . . . . . . . 1 . . . Database Lockouts . | . . . . . . . . . . . Manual 16 | . 12 . 1 . 1 . 2 . . . Terminals 15 | . 13 . . . . . 2 . . . Fabricators 1 | . . . . . 1 . . . . . Repair Stations 1 | . . . . . . . 1 . . . Recycling Units 3 | . . . 1 . 2 . . . . . Scanalyzers 3 | . . . . . . . 3 . . . Garrison Access . | . . . . . . . . . . . Terminal Hacks 79 | . 1 5 . 46 . . . . 1 26 Record 52 | . . 4 . 37 . . . . . 11 Part Schematic 8 | . . . . . . . . . . 8 Robot Schematic 4 | . . . . . . . . . . 4 Robot Analysis 7 | . . . . 7 . . . . . . Prototype ID Bank 3 | . . . . . . . . . . 3 Open Door 2 | . . . . 1 . . . . 1 . Terminal Index 1 | . 1 . . . . . . . . . Proto ID Catalog 2 | . . 1 . 1 . . . . . . Fabricator Hacks 1 | . . . . . 1 . . . . . Build 1 | . . . . . 1 . . . . . Repair Station Hacks . | . . . . . . . . . . . Recycling Unit Hacks 1 | . . . . . 1 . . . . . Retrieve Components 1 | . . . . . 1 . . . . . Scanalyzer 2 | . . . . . . . 2 . . . Retrieve Study 2 | . . . . . . . 2 . . . Garrison Access Hacks . | . . . . . . . . . . . Unauthorized Hacks 11 | . 8 . 1 . 1 . 1 . . . Terminals 9 | . 8 . . . . . 1 . . . Botnet 3 | . 2 . . . . . 1 . . . Operators 1 | . 1 . . . . . . . . . Skim 5 | . 5 . . . . . . . . . Fabricators . | . . . . . . . . . . . Repair Stations . | . . . . . . . . . . . Recycling Units 2 | . . . 1 . 1 . . . . . Reject 1 | . . . . . 1 . . . . . Tunnel 1 | . . . 1 . . . . . . . Scanalyzers . | . . . . . . . . . . . Garrison Access . | . . . . . . . . . . . Data Cores Recovered . | . . . . . . . . . . . Used . | . . . . . . . . . . . Hacking Detections 9 | . 5 . . . . . 4 . . . Full Trace Events . | . . . . . . . . . . . Feedback Events . | . . . . . . . . . . . Feedback Blocked . | . . . . . . . . . . . Robot Schematics Acquired 4 | . . . . . . . . . . 4 Robots Built . | . . . . . . . . . . . Authchips . | . . . . . . . . . . . Time . | . . . . . . . . . . . Total Robot Build Rating . | . . . . . . . . . . . Part Schematics Acquired 8 | . . . . . . . . . . 8 Parts Built 2 | . . . . . 2 . . . . . Authchips . | . . . . . . . . . . . Time 128 | . . . . . 128 . . . . . Total Part Build Rating 16 | . . . . . 16 . . . . . Part Studies Acquired 2 | . . . . . . . 2 . . . Parts Repaired . | . . . . . . . . . . . Time . | . . . . . . . . . . . Parts Recycled . | . . . . . . . . . . . Recycled Matter . | . . . . . . . . . . . Retrieved Matter . | . . . . . . . . . . . Retrieved Components 7 | . . . . . 7 . . . . . Parts Scanalyzed . | . . . . . . . . . . . Part Schematics Acquired . | . . . . . . . . . . . Parts Damaged . | . . . . . . . . . . . Bothacking | -11 -10 -10 -8 -8 -6 -6 -6 -6 -6 -6 ------------ Run | Yrd Mat Sub Rec Scr Fac Was Fac Low Low Dat Used RIF Installer . | . . . . . . . . . . . Robots Hacked . | . . . . . . . . . . . Non-combat . | . . . . . . . . . . . Combat . | . . . . . . . . . . . Robot Hacks Applied . | . . . . . . . . . . . Relay Couplers Released . | . . . . . . . . . . . Fabnet Peak Effective % . | . . . . . . . . . . . Robots Rewired . | . . . . . . . . . . . Allies Hacked . | . . . . . . . . . . . Hacks Repelled . | . . . . . . . . . . . Allies | -11 -10 -10 -8 -8 -6 -6 -6 -6 -6 -6 -------- Run | Yrd Mat Sub Rec Scr Fac Was Fac Low Low Dat Total Allies 13 | . . 9 . . . . . . 4 . Largest Group 6 | . . 6 3 3 3 . . . 4 4 Highest-Rated Group 324 | . . 114 57 57 57 . . . 324 324 Highest-Rated Ally 81 | . . 19 19 19 19 . . . 81 81 Total Orders . | . . . . . . . . . . . Ally Attacks 73 | . . 19 . . 15 . . . 23 16 Total Damage 1028 | . . 175 . . 92 . . . 483 278 Kills 13 | . . 3 . . 3 . . . 5 2 Allies Corrupted . | . . . . . . . . . . . Allies Melted . | . . . . . . . . . . . Intel | -11 -10 -10 -8 -8 -6 -6 -6 -6 -6 -6 ------- Run | Yrd Mat Sub Rec Scr Fac Was Fac Low Low Dat Active Infowar (turns) 9123 | 20 603 4498 84 2221 385 70 507 384 216 135 Optics 10 | . . . . . . . 10 . . . Sensors 599 | . . . . . . . 215 384 . . Structural 387 | . . . . . 381 4 2 . . . Seismic 8179 | 20 603 4498 84 2221 385 70 298 . . . Decoding 351 | . . . . . . . . . 216 135 Robot Analysis Total 154 | . . . . 7 . . . . . 147 Derelict Logs Recovered 10 | . . 2 . 4 . . . 1 3 . Drone Launches . | . . . . . . . . . . . Drone Recoveries . | . . . . . . . . . . . Exploration | -11 -10 -10 -8 -8 -6 -6 -6 -6 -6 -6 ------------- Run | Yrd Mat Sub Rec Scr Fac Was Fac Low Low Dat Turns Passed 9708 | 134 603 4570 84 2221 385 70 613 461 432 135 Spaces Moved 6127 | 66 329 2640 53 1454 226 119 494 318 336 92 Core 574 | 4 . . . 161 . 119 . 33 253 4 Treads 4609 | 62 329 2640 53 1293 226 . 6 . . . Legs 741 | . . . . . . . 285 285 83 88 Wheels . | . . . . . . . . . . . Hover 203 | . . . . . . . 203 . . . Flight . | . . . . . . . . . . . Fastest Speed 50 | 50 160 160 160 50 160 50 66 50 50 120 Average Speed 143 | 153 160 160 160 147 160 53 98 110 104 125 Slowest Speed 250 | 160 160 160 160 160 160 150 160 120 120 250 Overloaded Moves . | . . . . . . . . . . . Propulsion Burnouts . | . . . . . . . . . . . Robots Hopped . | . . . . . . . . . . . Potential Cave-ins . | . . . . . . . . . . . Cave-ins Triggered . | . . . . . . . . . . . Exploration Rate (%) 48 | 5 56 94 13 86 5 75 13 56 50 77 Regions Visited 10 Branch Regions 6 Pre-discovered Areas 36 | . . 3 1 9 . . . . 1 22 Known Exits Taken 3 | . . . . . . . 1 1 1 . Unknown Exits Taken 5 | 1 1 1 1 1 . . . . . . Scrap Searched 28 | . . 13 . 10 . . . 1 4 . Spaces Dug 4 | . . . . . 2 . 1 1 . . Terrain Destroyed 47 | . . 43 . . 2 . 1 1 . . Melee 4 | . . . . . 2 . 1 1 . . Projectile . | . . . . . . . . . . . AOE 43 | . . 43 . . . . . . . . Terrain Rammed . | . . . . . . . . . . . Walls Destroyed . | . . . . . . . . . . . Machines Disabled . | . . . . . . . . . . . Actions | -11 -10 -10 -8 -8 -6 -6 -6 -6 -6 -6 --------- Run | Yrd Mat Sub Rec Scr Fac Was Fac Low Low Dat Total 6775 | 83 371 2863 52 1538 247 131 579 403 408 100 Wait 238 | 3 19 60 . 15 12 1 19 48 61 . Move 6119 | 65 329 2639 52 1453 226 118 493 317 335 92 Hop . | . . . . . . . . . . . Pick Up 69 | 2 4 25 . 27 2 . 8 . 1 . Fast Attach 42 | 7 . 1 . 8 2 1 16 2 4 1 Attach 12 | . . 2 . . 3 . 3 1 3 . Detach 5 | . . . . 1 . 2 . 2 . . Swap 40 | . 1 29 . 4 . . 4 2 . . Drop 82 | . 1 20 . 30 . 9 12 10 . . Fire 110 | 6 17 87 . . . . . . . . Melee 58 | . . . . . 2 . 24 21 4 7 Ram . | . . . . . . . . . . . Kick . | . . . . . . . . . . . Crush . | . . . . . . . . . . . Escape Stasis . | . . . . . . . . . . . Rewire . | . . . . . . . . . . . Trap . | . . . . . . . . . . . Miscellaneous . | . . . . . . . . . . . Route ------- -11/Scrapyard -10/Materials (discovered 3 exits: [*Mat] / [*Min] / *Sub) -10/Subcaves (discovered 3 exits: [*Mat x2] / *Rec) -8/Recycling -8/Scraptown (discovered 2 exits: *Fac x2) -6/Factory (discovered 4 exits: Fac / Low / Ext x2) -6/Waste -6/Factory -6/Lower Caves -6/Lower Caves -6/Data Miner (discovered 1 exit: *Pro) History --------- Turn | Location | Event 36 | -11/Scrapyard | Discovered new exit (range 15) 135 | -11/Scrapyard | Entered Materials 307 | -10/Materials | Build established: Mutant 543 | -10/Materials | Discovered new exit (range 12) 638 | -10/Materials | Discovered new exit (range 10) 707 | -10/Materials | Discovered new exit (range 14) 735 | -10/Materials | Derelicts attacked the area 738 | -10/Materials | Entered Subcaves 1201 | -10/Subcaves | Learned location of Zion (-7) 1368 | -10/Subcaves | Core integrity fell below 50% 1486 | -10/Subcaves | Visited triangular shrine 1497 | -10/Subcaves | Found Prototype Device 1497 | -10/Subcaves | Identified V3-11A's Pendant 1502 | -10/Subcaves | Befriended Subdweller 1527 | -10/Subcaves | Build established: Scavenger-Mutant 1605 | -10/Subcaves | Visited Clippyterm 1610 | -10/Subcaves | Learned location of Section 7 (-2) 2009 | -10/Subcaves | Build established: Mutant 2019 | -10/Subcaves | A swath of the cavern ceiling suddenly collapsed 2021 | -10/Subcaves | Befriended Subdweller 2076 | -10/Subcaves | Befriended Subdweller 2113 | -10/Subcaves | Disturbed a concealed Subdweller 2274 | -10/Subcaves | Befriended Subdweller 2274 | -10/Subcaves | Befriended Subdweller 2390 | -10/Subcaves | Visited 4L-MR0's lab 2406 | -10/Subcaves | Found Gun Armor 2627 | -10/Subcaves | Shifting Twisted Machinery released Mak. Hammer 2707 | -10/Subcaves | Befriended Subdweller 2722 | -10/Subcaves | A swath of the cavern ceiling suddenly collapsed 2906 | -10/Subcaves | Befriended Subdweller 3453 | -10/Subcaves | Shifting Twisted Machinery released Sub. Monowheel 3466 | -10/Subcaves | Shifting Twisted Machinery released Battle Rifle 3468 | -10/Subcaves | Befriended Subdweller 3468 | -10/Subcaves | Befriended Subdweller 3475 | -10/Subcaves | Met a Zionite searching for "candidates" 3945 | -10/Subcaves | Discovered new exit (range 11) 3987 | -10/Subcaves | Disturbed a concealed Subdweller 3988 | -10/Subcaves | Core integrity fell below 20% 4018 | -10/Subcaves | Lost 3 allies 4140 | -10/Subcaves | Discovered new exit (range 11) 5283 | -10/Subcaves | Discovered new exit (range 10) 5308 | -10/Subcaves | Entered Recycling 5308 | -8/Recycling | Accompanied by 3 allies 5352 | -8/Recycling | Scanned before Scraplab entrance 5374 | -8/Recycling | Entered Scraplab 5388 | -8/Recycling | Discovered new exit (range 2) 5392 | -8/Recycling | Entered Scraptown 5392 | -8/Scraptown | Accompanied by 3 allies 5634 | -8/Scraptown | Scanned Subdweller tech in exchange for log data 5637 | -8/Scraptown | Learned location of Extension (-6) 5639 | -8/Scraptown | Learned location of Testing (-2) 5640 | -8/Scraptown | Learned Research terminal intel 5644 | -8/Scraptown | Learned location of 1 exit from Factory 5663 | -8/Scraptown | Discovered new exit (range 13) 5898 | -8/Scraptown | Delivered V3-11A's Pendant to T0-NE2 in exchange for information 6216 | -8/Scraptown | Visited Cave Peace 6299 | -8/Scraptown | Visited Shadow of the Wyrm 6320 | -8/Scraptown | Visited Bundlers 6408 | -8/Scraptown | Visited Spacefarers 6456 | -8/Scraptown | Visited Science Testing Area 6514 | -8/Scraptown | Visited Cyclists 6564 | -8/Scraptown | Visited UFD Registry 6564 | -8/Scraptown | Registered with UFD as "Fluxhead" 6600 | -8/Scraptown | Entered Cyclist Reading Room 6672 | -8/Scraptown | Visited Research Penetration Think Tank 6708 | -8/Scraptown | Visited Derelict Rescue Squad 6717 | -8/Scraptown | Found DRS Beacon 6747 | -8/Scraptown | Visited DA-N13 Charitable Foundation 6753 | -8/Scraptown | Found DCF Scrap (30 items) 6912 | -8/Scraptown | Visited Curators Association 6968 | -8/Scraptown | Visited Scrap Suit Storage 7000 | -8/Scraptown | Visited Sword Containment 7021 | -8/Scraptown | Visited Analyses Database 7056 | -8/Scraptown | Visited Infowarlord's Domain 7069 | -8/Scraptown | Found Exp. Terrain Scanner 7107 | -8/Scraptown | Visited Science Guys 7162 | -8/Scraptown | Visited Cartography Club 7215 | -8/Scraptown | Learned location of Storage (-8) 7215 | -8/Scraptown | Learned location of Upper Caves (-4) 7215 | -8/Scraptown | Learned location of Warlord (-4) 7215 | -8/Scraptown | Learned location of Hub_04(d) (-6) 7215 | -8/Scraptown | Learned 12 Research zone layouts 7215 | -8/Scraptown | Learned 16 Research zone layouts 7215 | -8/Scraptown | Learned 12 Lower Caves zone layouts 7215 | -8/Scraptown | Learned 24 Upper Caves zone layouts 7215 | -8/Scraptown | Learned 12 Proximity Caves zone layouts 7215 | -8/Scraptown | Learned Research emergency access door positions 7215 | -8/Scraptown | Learned location of 3 exits from Factory 7215 | -8/Scraptown | Learned location of 1 exit from Lower Caves 7215 | -8/Scraptown | Learned location of 1 exit from Proximity Caves 7255 | -8/Scraptown | Found Deep Structural Scanner 7421 | -8/Scraptown | Found Prototype Slashing Weapon 7421 | -8/Scraptown | Identified Companion Sword 7519 | -8/Scraptown | Met Optimus 7519 | -8/Scraptown | Accepted into 0bPrime 7605 | -8/Scraptown | Discovered new exit (range 3) 7613 | -8/Scraptown | Entered Factory 7613 | -6/Factory | Accompanied by 3 allies 7613 | -6/Factory | Evolved 8 slots: Power x1, Propulsion x3, Utility x4 7614 | -6/Factory | Identified exit to Factory 7614 | -6/Factory | Identified exit to Extension 7614 | -6/Factory | Identified exit to Lower Caves 7619 | -6/Factory | Attached Gun Armor, gained temporary slots: Weapon x2 7765 | -6/Factory | Fabricated Adv. Force Field? 7998 | -6/Factory | Sucked down chute 7998 | -6/Factory | Entered Waste 8011 | -6/Waste | Spotted C-40 Crusher 8013 | -6/Waste | EMP discharged 8032 | -6/Waste | Spotted C-40 Crusher 8036 | -6/Waste | Spotted C-40 Crusher 8039 | -6/Waste | Spotted C-40 Crusher 8040 | -6/Waste | Spotted C-40 Crusher 8052 | -6/Waste | Spotted C-40 Crusher 8053 | -6/Waste | Discovered new exit (range 16) 8060 | -6/Waste | Identified exit to Factory 8064 | -6/Waste | System corruption reached 10% 8068 | -6/Waste | Entered Factory 8436 | -6/Factory | Discovered exit to Lower Caves (range 11) 8681 | -6/Factory | Entered Lower Caves 8682 | -6/Lower Caves | Identified exit to Lower Caves 8776 | -6/Lower Caves | Build established: Scavenger-Mutant 8975 | -6/Lower Caves | Attracted the attention of an 0b10 checkpoint 9032 | -6/Lower Caves | Attracted the attention of an 0b10 outpost 9076 | -6/Lower Caves | Lost 3 parts (3n) 9138 | -6/Lower Caves | Learned Factory emergency access door positions 9142 | -6/Lower Caves | Entered another Lower Caves area 9157 | -6/Lower Caves | Lost 3 parts (2n1u) 9165 | -6/Lower Caves | Learned Factory stockpile data 9168 | -6/Lower Caves | Learned 12 Factory zone layouts 9212 | -6/Lower Caves | Spotted B-75 Beast 9226 | -6/Lower Caves | Prototype Device suddenly appears! 9232 | -6/Lower Caves | Found Prototype Device 9232 | -6/Lower Caves | Identified Amulet of Y3-NDR 9279 | -6/Lower Caves | Joined by bewildered Wizard 9279 | -6/Lower Caves | Joined by bewildered Wizard 9280 | -6/Lower Caves | Joined by bewildered Wizard 9298 | -6/Lower Caves | Core integrity fell below 50% 9303 | -6/Lower Caves | Joined by bewildered Wizard 9329 | -6/Lower Caves | Build established: Mutant 9472 | -6/Lower Caves | System corruption reached 30% 9551 | -6/Lower Caves | Discovered new exit (range 16) 9568 | -6/Lower Caves | Identified exit to Data Miner 9574 | -6/Lower Caves | Entered Data Miner 9574 | -6/Data Miner | Accompanied by 4 allies 9574 | -6/Data Miner | Discovered new exit (range 6) 9579 | -6/Data Miner | Identified exit to Proximity Caves 9597 | -6/Data Miner | Met Data Miner 9618 | -6/Data Miner | Acquired the access code to Warlord's prototype stash 9639 | -6/Data Miner | Received God Mode back door access code from Data Miner 9662 | -6/Data Miner | Interfaced with the Data Conduit 9704 | -6/Data Miner | Core integrity fell below 20% 9709 | -6/Data Miner | Destroyed by Enhanced Grunt with Neutron Cannon Last Messages --------------- 09666_ Chain reaction triggered in Lgt. Antimatter Reactor. 09666_ RL-1WE(p) destroyed. 09668_ Enhanced Grunt system terminally corrupted. 09673_ Chain reaction triggered in Antimatter Reactor. 09674_ Enhanced Grunt system terminally corrupted. 09678_ System corrupted: Component data lost. 09678_ VB-U9E(p) destroyed. 09679_ System corrupted: Flexi-carbon Leg stumbles. 09680_ Lgt. Fission Core destroyed. 09683_ Acquired Lyr. Medium Armor Plating. 09685_ JN-HN1(p) destroyed. 09689_ Flexi-carbon Leg destroyed. 09694_ T9KH7YMAX64LV &J0J5DEF&JW#KB95/BZH7I4R1 09694_ Amulet of Y3-NDR destroyed. 09700_ Lyr. Medium Armor Plating destroyed. Map ----- +----------------------------------------------------+ | | | | | | | | | | | | | | | | | | | | | | | | | | | | | | | | | | | ?????????????????????????????????????????????? | | ?????????????????????????????????????????????? | | ?????????????????????????????????????????????? | | ?????????????????????????????????????????????? | | ???????????????##########????????####????????? | | ??##############; #;;##?#???### #????????? | | ?"""""""""""""""#;;;;; ; # #??## #????????? | | """"""""" """"" =%!; #g# ## > ##????????? | | """"""""" * ! %== @ p ######???? | | """""" *% ]*! #???? | | """""" %![ g #???? | | """"" ! ! #???? | | """""" %! ##???? | | """""" """ """"""""""""#####????? | | """"""" """"###############????????? | | """"""" """"###??????????????????????? | | ?"""""""" "#####????????????????????????? | | ??######"## "#????????????????????????????? | | ???????#"### "#????????????????????????????? | | ???????#"### "#????????????????????????????? | | ???????#"?# "#????????????????????????????? | | ?????????## "#????????????????????????????? | | ?????????# "#????????????????????????????? | | ?????????### "#????????????????????????????? | | ???????????# "##???????????????????????????? | | ??????????## ""#???????????????????????????? | | ???????#?## ""#???????????????????????????? | | ?????"##"#"X ""#???????????????????????????? | | ?????"""""" "####????????????????????????? | | ?????#""""" X"""""????????????????????????? | | ?????###"#"X "##"#????????????????????????? | | ???????#?## X""""#????????????????????????? | | ??????????## "##"#????????????????????????? | +----------------------------------------------------+ Best States ------------- Heat Dissipation 37 Energy Generation 29 Energy Capacity 340 Matter Stores 300 Matter Capacity 300 Sight Range 22 Robot Scan Range 15 Terrain Scan Density 10 Armor Coverage 225 Resistance: EM 25 Evasion (%) 55 Melee Accuracy 22 Recoil Reduction 3 Force Boost 30 Item Schematics ----------------- Combat Drone Bay | -6/Data Miner | Free Lgt. Regenerative Plating | -6/Data Miner | Free Cld. Gravmag System | -6/Data Miner | Free Prc. Energy Filter | -6/Data Miner | Free Kinetic Spear | -6/Data Miner | Free Myomer Leg | -6/Data Miner | Free Imp. Force Field | -6/Data Miner | Free Adv. Datajack | -6/Data Miner | Free Robot Schematics ------------------ R-10 Processor | -6/Data Miner | Free A-15 Conveyor | -6/Data Miner | Free M-36 Artificer | -6/Data Miner | Free G-50 Soldier | -6/Data Miner | Free Fabricated ------------ Adv. Force Field | x2 | -6/Factory | Preloaded Repaired ---------- Nothing Studied --------- Gravmag Array | -6/Factory | Hacked Imp. Carbon-fiber Leg | -6/Factory | Hacked Alien Tech Used ----------------- None Achievements -------------- Rodney's Helpers Challenges ------------ None Game ------ Seed ElectronBoltDeflector Manual? 0 Play Time 00:54:01 Cumulative 253.5 hours Start 2025.12.23 @ 14:27:28 End 2025.12.25 @ 22:24:20 Sessions 3 Manual Loads 0 Difficulty Rogue Special Mode None Game No. 169 Rogue 169 Adventurer 0 Explorer 0 Win Type - Total 8 Types 5/0/1/1/0/0/0/1/0/0 Lore% 88 Gallery% 78 Achievement% 62 Wizard Run 0 Options --------- Layout 1 ASCII 0 Keyboard 0 Movement Mouse Keybinds 0 Fullscreen 2 Font 24/Smallcaps Map View 50x35 Zoom Use 0% Tactical HUD 1 Map Filters NONE Filters NONE Steam 1 RUN: 875dba13-cc9f-485f-a540-2edd6cc509f7